Cogmind - Beta 13 @@@ ROGUE MODE // 2024.04.12 @ 11:45:25 Player: Exceptionally Mediocre Result: Destroyed by as-72237 with Assembled Rifle Performance ------------- Evolutions (0) 0 Regions Visited (2) 400 Robots Destroyed (34) 170 Value Destroyed (635) 635 Prototype IDs (0) 0 Alien Tech Used (0) 0 Bonus (0) 0 TOTAL SCORE: 1205 Bonus ------- None Cogmind --------- Core Integrity 0/250 Matter 246/300 Energy 124/125 System Corruption 0% Temperature Cool (0) Movement Core (450) Ox8 Location -10/Mines Parts ------- > --- POWER (1) -------- Light Ion Engine > --- PROPULSION (2) --- (None) > --- UTILITY (2) ------ Large Storage Unit Core Shielding > --- WEAPON (2) ------- Light Assault Rifle > --- INVENTORY (15) --- Light Ion Engine Light Ion Engine Light Nuclear Core High-capacity Matter Pod (200) Structural Scanner Terrain Scan Processor Core Shielding Power Shielding EM Pulse Gun EM Pulse Gun Peak State ------------ > --- POWER ------------ Light Ion Engine > --- PROPULSION ------- Wheel Wheel > --- UTILITY ---------- Medium Storage Unit Improved Terrain Scanner > --- WEAPON ----------- Small Laser Mining Laser > --- INVENTORY -------- Light Ion Engine Light Ion Engine Wheel Wheel Wheel High-capacity Matter Pod Power Shielding EM Pulse Gun EM Pulse Gun Assault Rifle [Rating: 10] Favorites ----------- Power Light Ion Engine Engine Light Ion Engine Propulsion Wheel Wheel Wheel Utility Medium Storage Unit Device Improved Terrain Scanner Storage Medium Storage Unit Protection Core Shielding Weapon Assault Rifle Energy Gun Medium Laser Ballistic Gun Assault Rifle Special Weapon Mining Laser Build | -11 -10 -10 ------- Run | Yrd Mat Min Slots Evolved . | . . . Power . | . . . Propulsion . | . . . Utility . | . . . Weapon . | . . . Parts Attached 39 | 8 17 14 Power 5 | 1 2 2 Engine 5 | 1 2 2 Core . | . . . Reactor . | . . . Propulsion 15 | 3 6 6 Treads . | . . . Leg . | . . . Wheel 15 | 3 6 6 Hover . | . . . Flight . | . . . Utility 7 | 2 3 2 Device 1 | 1 . . Storage 3 | 1 2 . Processor . | . . . Hackware . | . . . Protection 3 | . 1 2 Artifact . | . . . Weapon 12 | 2 6 4 Energy Gun 6 | 2 3 1 Energy Cannon . | . . . Ballistic Gun 5 | . 2 3 Ballistic Cannon . | . . . Launcher . | . . . Special Weapon 1 | . 1 . Impact Weapon . | . . . Slashing Weapon . | . . . Piercing Weapon . | . . . Special Melee Weapon . | . . . Unidentified Prototypes . | . . . Parts Lost 18 | . 5 13 Power 3 | . 1 2 Propulsion 9 | . 3 6 Utility 1 | . . 1 Weapon 5 | . 1 4 Highest Loss Streak 11 | . 4 11 To Critical Strikes . | . . . Average Slot Usage (%) 98 | . 99 95 Engine 13 | . 14 13 Wheel 27 | . 27 27 Device 5 | . 6 . Storage 14 | . 14 14 Protection 8 | . 7 13 Energy Gun 10 | . 12 2 Ballistic Gun 16 | . 14 23 Naked Turns . | . . . Heaviest Build 28 | 12 28 28 Greatest Support 26 | 26 26 20 Greatest Overweight (x) 8 | 2 1 8 Average Overweight (x) . | . . 1 Largest Inventory Capacity 15 | 8 15 15 Average Capacity 11 | 7 11 15 Most Carried 15 | 8 15 15 Average Carried 10 | 3 10 13 Final Capacity 15 | 8 15 15 Final Carried 15 | 8 15 10 Class Distribution -------------------- 58% | Scavenger-Mutant 41% | Mutant Dominant Class ---------------- Scavenger-Mutant | -10/Materials Scavenger-Mutant | -10/Mines Resources | -11 -10 -10 ----------- Run | Yrd Mat Min Matter Collected 956 | 280 595 81 Remotely . | . . . Salvage Created 997 | 135 736 126 Parts 75 | 10 55 10 Haulers Intercepted 2 | . 2 . Recyclers Shooed . | . . . Parts Field Recycled . | . . . Retrieved Matter . | . . . Parts Self-Destructed . | . . . Prevented . | . . . Kills | -11 -10 -10 ------- Run | Yrd Mat Min Combat Hostiles Destroyed 19 | . 14 5 Guns 17 | . 12 5 AOE 2 | . 2 . Classes Destroyed 10 | 2 7 1 Worker 5 | . 4 1 Builder 2 | . 2 . Tunneler 3 | 3 . . Hauler 2 | . 2 . Recycler 1 | 1 . . Operator 1 | . 1 . Watcher 2 | . 2 . Swarmer 5 | . 3 2 Grunt 13 | . 11 2 Assembled 1 | . . 1 Best Kill Streak 6 | 2 6 2 Combat Bots Only 5 | . 5 2 Max Kills in Single Turn 2 | 1 2 1 Gunslinging . | . . . Exploded 1 | . 1 . Melee . | . . . Uniques/NPCs Destroyed . | . . . Combat | -11 -10 -10 -------- Run | Yrd Mat Min Hostile Shots Fired 113 | . 68 45 Missed 24 | . 17 7 Damage Taken 1494 | 36 683 775 Core 251 | . 180 71 Absorbed by Shields . | . . . Redirected to Shielding 15 | . 4 11 Core Remaining (%) 100 | 100 . . Volleys Fired 104 | 8 76 20 Largest 2 | 2 2 2 Hottest 140 | 80 140 70 Shots Fired 196 | 16 143 37 Gun 192 | 16 139 37 Cannon . | . . . Launcher . | . . . Special 4 | . 4 . Kinetic 118 | . 84 34 Thermal 53 | 8 42 3 Explosive . | . . . Electromagnetic 25 | 8 17 . Robot Hit Streak 11 | 6 9 11 Robot Miss Streak 5 | 1 5 4 Penetration Max . | . . . Secondary Targets 1 | . 1 . Max Gunslinging Chain 1 | . 1 . Shots Hit Robots 114 | 11 79 24 Core Hits 54 | 4 36 14 Critical Kills . | . . . Critical Parts Destroyed 1 | . 1 . Critical Strikes 3 | . 2 1 Burn 2 | . 1 1 Destroy 1 | . 1 . Melee Attacks . | . . . Impact . | . . . Slashing . | . . . Piercing . | . . . Sneak Attacks . | . . . Combat Hostiles . | . . . Follow-up Attacks . | . . . Damage Inflicted 1670 | 166 1284 220 Guns 1399 | 131 1048 220 Cannons . | . . . Explosions 223 | 35 188 . Melee . | . . . Ramming . | . . . Kinetic 857 | . 675 182 Thermal 619 | 125 456 38 Explosive . | . . . Electromagnetic 194 | 41 153 . Impact . | . . . Slashing . | . . . Piercing . | . . . Highest Corruption . | . . . Average Corruption . | . . . Corruption Purged . | . . . Corruption Blocked . | . . . Overload Shots . | . . . Overflow Damage 6 | 6 . . Projectiles . | . . . Explosions 6 | 6 . . Melee . | . . . Knockbacks . | . . . Impact . | . . . Kinetic . | . . . Secondary . | . . . Self-Inflicted Damage 82 | 36 46 . Shots 2 | 1 1 . Rammed 1 | . 1 . Targets Rammed 1 | . 1 . Kicked . | . . . Crushed . | . . . Highest Temperature 138 | 86 138 30 Average Temperature 27 | 46 28 7 Received Heat Transfer 354 | . 309 45 Siege Activations . | . . . Robots Corrupted . | . . . Combat Hostiles . | . . . Parts Fried . | . . . Impact Corruptions . | . . . Robots Melted . | . . . Combat Hostiles . | . . . Parts Melted . | . . . Heat Transferred 1341 | 250 906 185 Parts Sabotaged . | . . . Parts Stolen . | . . . Parts Stripped . | . . . Power Chain Reactions 3 | 1 2 . Alert | -11 -10 -10 ------- Run | Yrd Mat Min Peak Influence 277 | 20 277 153 Initial 18 | . 13 18 Average 133 | 9 149 100 Maximum Alert Level 1 | . 1 . Low Security (%) 80 | 100 76 100 Level 1 19 | . 23 . Level 2 . | . . . Level 3 . | . . . Level 4 . | . . . Level 5 . | . . . High Security . | . . . Max Security . | . . . Squads Dispatched 4 | . 4 . Investigation 3 | . 3 . Extermination . | . . . Reinforcement 1 | . 1 . Assault . | . . . Garrison . | . . . Intercept . | . . . Searches Triggered . | . . . Construction Impeded . | . . . Haulers Reinforced . | . . . Active Scanning Responses . | . . . Cargo Convoy Interrupts . | . . . Stealth | -11 -10 -10 --------- Run | Yrd Mat Min Distress Signals 3 | . 1 2 Communications Jammed . | . . . Distress Signals . | . . . Times Spotted 47 | . 26 21 Peak Tracking Total 14 | . 3 14 Tactical Retreats 3 | . 1 2 Traps | -11 -10 -10 ------- Run | Yrd Mat Min Traps Triggered 1 | . 1 . Indirectly . | . . . Trap Hack Attempts . | . . . Triggered . | . . . Disarmed . | . . . Reprogrammed . | . . . Reused . | . . . Traps Extracted . | . . . Installed . | . . . Triggered . | . . . Machines | -11 -10 -10 ---------- Run | Yrd Mat Min Machines Disabled 1 | . 1 . Max in Single Turn 1 | . 1 . Machines Repaired . | . . . Machines Dismantled . | . . . Machines Sabotaged . | . . . Overloaded Fab Kills . | . . . Hacking | -11 -10 -10 --------- Run | Yrd Mat Min Machines Accessed 8 | . 8 . Terminals 6 | . 6 . Fabricators . | . . . Repair Stations . | . . . Recycling Units 2 | . 2 . Scanalyzers . | . . . Garrison Access . | . . . Total Hacks 18 | . 18 . Successful 7 | . 7 . Failed 11 | . 11 . Catastrophic 2 | . 2 . Database Lockouts . | . . . Manual 13 | . 13 . Terminals 13 | . 13 . Fabricators . | . . . Repair Stations . | . . . Recycling Units 5 | . 5 . Scanalyzers . | . . . Garrison Access . | . . . Terminal Hacks 2 | . 2 . Zone Layout 2 | . 2 . Fabricator Hacks . | . . . Repair Station Hacks . | . . . Recycling Unit Hacks 1 | . 1 . Retrieve Components 1 | . 1 . Scanalyzer . | . . . Garrison Access Hacks . | . . . Unauthorized Hacks 4 | . 4 . Terminals 4 | . 4 . Assimilate 1 | . 1 . Botnet 3 | . 3 . Fabricators . | . . . Repair Stations . | . . . Recycling Units . | . . . Scanalyzers . | . . . Garrison Access . | . . . Data Cores Recovered . | . . . Used . | . . . Hacking Detections 7 | . 7 . Full Trace Events 3 | . 3 . Feedback Events . | . . . Feedback Blocked . | . . . Robot Schematics Acquired . | . . . Robots Built . | . . . Authchips . | . . . Time . | . . . Total Robot Build Rating . | . . . Part Schematics Acquired . | . . . Parts Built . | . . . Authchips . | . . . Time . | . . . Total Part Build Rating . | . . . Parts Repaired . | . . . Time . | . . . Parts Recycled . | . . . Recycled Matter . | . . . Retrieved Matter . | . . . Retrieved Components . | . . . Parts Scanalyzed . | . . . Part Schematics Acquired . | . . . Parts Damaged . | . . . Bothacking | -11 -10 -10 ------------ Run | Yrd Mat Min Used RIF Installer . | . . . Robots Hacked . | . . . Non-combat . | . . . Combat . | . . . Robot Hacks Applied . | . . . Relay Couplers Released . | . . . Fabnet Peak Effective % . | . . . Robots Rewired . | . . . Allies Hacked . | . . . Hacks Repelled . | . . . Allies | -11 -10 -10 -------- Run | Yrd Mat Min Total Allies . | . . . Largest Group . | . . . Highest-Rated Group . | . . . Highest-Rated Ally . | . . . Total Orders . | . . . Ally Attacks . | . . . Total Damage . | . . . Kills . | . . . Allies Corrupted . | . . . Allies Melted . | . . . Intel | -11 -10 -10 ------- Run | Yrd Mat Min Robot Analysis Total . | . . . Derelict Logs Recovered 1 | . . 1 Drone Launches . | . . . Drone Recoveries . | . . . Exploration | -11 -10 -10 ------------- Run | Yrd Mat Min Turns Passed 1584 | 114 1267 203 Spaces Moved 1275 | 80 1064 131 Core 9 | 8 . 1 Treads . | . . . Legs . | . . . Wheels 1266 | 72 1064 130 Hover . | . . . Flight . | . . . Fastest Speed 50 | 50 80 95 Average Speed 88 | 86 86 98 Slowest Speed 450 | 150 95 450 Overloaded Moves . | . . . Propulsion Burnouts . | . . . Robots Hopped . | . . . Cave-ins Triggered . | . . . Exploration Rate (%) 41 | 4 91 28 Regions Visited 2 Branch Regions 1 Pre-discovered Areas . | . . . Known Exits Taken . | . . . Unknown Exits Taken 2 | 1 1 . Scrap Searched . | . . . Spaces Dug . | . . . Terrain Destroyed 11 | 3 8 . Melee . | . . . Projectile 1 | . 1 . AOE 10 | 3 7 . Terrain Rammed . | . . . Walls Destroyed . | . . . Machines Disabled . | . . . Actions | -11 -10 -10 --------- Run | Yrd Mat Min Total 1541 | 106 1259 176 Wait 68 | . 65 3 Move 1273 | 79 1063 131 Hop . | . . . Pick Up 37 | 9 22 6 Fast Attach 8 | 7 1 . Attach 15 | . 5 10 Detach . | . . . Swap 16 | 1 11 4 Drop 19 | 2 15 2 Fire 104 | 8 76 20 Melee . | . . . Ram 1 | . 1 . Kick . | . . . Crush . | . . . Escape Stasis . | . . . Rewire . | . . . Trap . | . . . Miscellaneous . | . . . Route ------- -11/Scrapyard -10/Materials (discovered 4 exits: [*Mat x3] / [*Min]) -10/Mines History --------- Turn | Location | Event 16 | -11/Scrapyard | Discovered new exit (range 16) 115 | -11/Scrapyard | Entered Materials 279 | -10/Materials | Discovered new exit (range 15) 513 | -10/Materials | Build established: Scavenger-Mutant 665 | -10/Materials | Core integrity fell below 50% 693 | -10/Materials | Lost 4 parts (1p2n1w) 781 | -10/Materials | Discovered new exit (range 14) 872 | -10/Materials | Discovered new exit (range 13) 1144 | -10/Materials | Discovered new exit (range 11) 1258 | -10/Materials | Build established: Mutant 1382 | -10/Materials | Entered Mines 1493 | -10/Mines | Learned 2 Materials zone layouts 1527 | -10/Mines | Assembled infested the area 1532 | -10/Mines | Assisted by a Guerilla fighting off Assembled 1553 | -10/Mines | Core integrity fell below 20% 1585 | -10/Mines | Destroyed by as-72237 with Assembled Rifle Last Messages --------------- 01564_ as-61734 destroyed. 01565_ D-53 Grenadier destroyed. 01566_ as-40966 suffers critical hit (Burn). 01566_ as-40966 destroyed. 01567_ The unstable cave ceiling collapses. 01570_ Acquired Terrain Scan Processor. 01570_ K-01 Serf collects debris. 01571_ The unstable cave ceiling collapses. 01572_ Acquired Structural Scanner. 01573_ K-01 Serf collects debris. 01575_ Wheel destroyed. 01577_ K-01 Serf collects debris. 01577_ Wheel destroyed. 01579_ U-05 Engineer builds a Wall. 01580_ Wheel destroyed. 01581_ K-01 Serf sends out distress signal. 01582_ S-10 Pest suffers critical hit (Destroy). 01584_ K-01 Serf collects debris. 01584_ S-10 Pest destroyed. 01585_ Med. Laser destroyed. Map ----- +----------------------------------------------------+ | | | | | | | | | | | | | ?????????????????????????????????????????????????? | | ???????????????????????????##????????????????????? | | ?????????????????????## ??? ????????????????????? | | #????????????????????# """ ???????????????????? | | ######???????????????? """ ???????????????????? | | #????????????????# """ #???????????????????? | | #### #????????????????? ######??????????????? | | ???# ######?#####??????? ######?????????? | | ???# #?# #???????? ??????????? | | ???###### #?# #????????## # ????????????? | | ????????# #?# ###????????# # k##?????????????? | | ????????# ### #??????????## # # #?????????????? | | ????????# %#??????????# # # #?????????????? | | ????????##### #??????????# #?????????????? | | ????????????# #??????????# # ##????????????? | | ????????????# #??????????# r #????????????? | | ????????????# #?????????## #????????????? | | ????????????# #????????##! % ###??????????? | | ????????????# ########## %| #??????? | | ????????????# @= % ?????? | | ????????????######## ### % = ????? | | #?????????########## #?## %*s###?????? | | #?????????# #??## % #???????? | | #?????????# ##########???## # ???????? | | ####??????????????????????### ## ##??????? | | #????????????????????????# #?###### #?????????? | | ## #????????????????????????# #????????#?????????? | | #??#????????????????????????# #??????????????????? | | #???????????????????????????# #??????????????????? | | ???????????????????????????? #??????????????????? | | ?????????????????????????????#???????????????????? | | ?????????????????????????????????????????????????? | | ## ### #?????????????????????????????????????????? | | #?????????????????????????????????????????? | | ###### #?????????????????????????????????????????? | | ?????????????????????????????????????????????????? | | ?????????????????????????????????????????????????? | | ?????????????????????????????????????????????????? | | ?????????????????????????????????????????????????? | | ?????????????????????????????????????????????????? | | ?????????????????????????????????????????????????? | | ?????????????????????????????????????????????????? | | ?????????????????????????????????????????????????? | | ?????????????????????????????????????????????????? | +----------------------------------------------------+ Best States ------------- Heat Dissipation 25 Energy Generation 10 Energy Capacity 125 Matter Stores 300 Matter Capacity 300 Sight Range 16 Terrain Scan Range 16 Terrain Scan Density 10 Armor Coverage 150 Core Shielding 20 Evasion (%) 44 Item Schematics ----------------- None Robot Schematics ------------------ None Fabricated ------------ Nothing Alien Tech Used ----------------- None Achievements -------------- None Challenges ------------ None Game ------ Seed TransmissionWarpMaul Manual? 0 Play Time 00:17:57 Cumulative 41.2 hours Start 2024.04.12 @ 11:30:20 End 2024.04.12 @ 11:45:25 Sessions 1 Manual Loads 0 Difficulty Rogue Special Mode None Game No. 44 Rogue 44 Adventurer 0 Explorer 0 Win Type - Total 0 Types 0/0/0/0/0/0/0/0/0 Lore% 16 Gallery% 33 Achievement% 26 Wizard Run 0 Options --------- Layout 1 ASCII 0 Keyboard 1 Movement Vi Keybinds 0 Fullscreen 1 Font 24/Smallcaps Map View 50x35 Zoom Use 0% Tactical HUD 1 Map Filters NONE Filters NONE Steam 1 RUN: 9c475a54-060e-4431-a9d9-7dbb1590dd8f